Cogmind - Beta 13 @@@ ROGUE MODE // 2024.05.08 @ 22:05:36 Player: Bace Troncons Result: Destroyed by Y-45 Defender with Beam Rifle Performance ------------- Evolutions (0) 0 Regions Visited (3) 600 Robots Destroyed (35) 175 Value Destroyed (1162) 1162 Prototype IDs (16) 320 Alien Tech Used (0) 0 Bonus (0) 0 TOTAL SCORE: 2257 Bonus ------- None Cogmind --------- Core Integrity 0/250 Matter 300/300 Energy 125/125 System Corruption 0% Temperature Cool (9) Movement Treading (160) Location -9/Recycling Parts ------- > --- POWER (1) -------- Light Ion Engine > --- PROPULSION (2) --- Spiked Treads Subdweller Monowheel > --- UTILITY (2) ------ Armored Scrap Engine > --- WEAPON (2) ------- Makeshift Hammer Makeshift Sword > --- INVENTORY (5) ---- Arachnoskeleton Terrain Scanner Makeshift Hacking Suite Peak State ------------ > --- POWER ------------ Light Ion Engine > --- PROPULSION ------- Spiked Treads Subdweller Monowheel > --- UTILITY ---------- Armored Scrap Engine > --- WEAPON ----------- Makeshift Hammer Makeshift Sword > --- INVENTORY -------- Arachnoskeleton Terrain Scanner Makeshift Hacking Suite [Rating: 33] Favorites ----------- Power Ion Engine Engine Ion Engine Propulsion Light Treads Treads Light Treads Wheel Subdweller Monowheel Utility Scrap Shield Device Terrain Scanner Storage Medium Storage Unit Processor Makeshift Terrain Scan Processor Protection Scrap Shield Weapon Makeshift Hammer Energy Cannon Subdweller Beam Cannon Ballistic Gun Barrage Gun Ballistic Cannon Improved Light Cannon Launcher Rocket Launcher Impact Weapon Makeshift Hammer Slashing Weapon Makeshift Sword Build | -11 -10 -10 -9 ------- Run | Yrd Mat Sub Rec Slots Evolved . | . . . . Power . | . . . . Propulsion . | . . . . Utility . | . . . . Weapon . | . . . . Parts Attached 39 | 6 5 27 1 Power 6 | 1 . 5 . Engine 6 | 1 . 5 . Core . | . . . . Reactor . | . . . . Propulsion 11 | 2 . 9 . Treads 5 | 2 . 3 . Leg . | . . . . Wheel 6 | . . 6 . Hover . | . . . . Flight . | . . . . Utility 9 | 1 3 4 1 Device 3 | . 1 1 1 Storage 2 | 1 1 . . Processor 2 | . 1 1 . Hackware . | . . . . Protection 2 | . . 2 . Artifact . | . . . . Weapon 13 | 2 2 9 . Energy Gun . | . . . . Energy Cannon 1 | . . 1 . Ballistic Gun 7 | 2 . 5 . Ballistic Cannon 2 | . 2 . . Launcher 1 | . . 1 . Special Weapon . | . . . . Impact Weapon 1 | . . 1 . Slashing Weapon 1 | . . 1 . Piercing Weapon . | . . . . Special Melee Weapon . | . . . . Unidentified Prototypes . | . . . . Parts Lost 4 | . . 4 . Power 2 | . . 2 . Propulsion 2 | . . 2 . Utility . | . . . . Weapon . | . . . . Highest Loss Streak 1 | . . 1 . To Critical Strikes . | . . . . Average Slot Usage (%) 89 | . 99 86 88 Engine 13 | . 14 12 14 Treads 14 | . 28 11 14 Wheel 10 | . . 12 14 Device 4 | . 4 3 14 Storage 4 | . 14 2 . Processor 5 | . 9 4 3 Protection 6 | . . 9 . Energy Cannon 2 | . . 3 . Ballistic Gun 5 | . 6 6 . Ballistic Cannon 5 | . 21 1 . Impact Weapon 7 | . . 9 14 Slashing Weapon 6 | . . 7 14 Naked Turns . | . . . . Heaviest Build 34 | 13 23 34 9 Greatest Support 40 | 40 40 40 20 Greatest Overweight (x) 9 | 4 . 9 . Average Overweight (x) . | . . . . Largest Inventory Capacity 10 | 8 10 10 5 Average Capacity 6 | 7 9 5 5 Most Carried 10 | 4 10 10 5 Average Carried 6 | 2 9 5 4 Final Capacity 10 | 8 10 5 5 Final Carried 10 | 4 10 5 5 Scrap Engine Consumption 11 | . . . 11 Class Distribution -------------------- 51% | Mutant 21% | Derelict-Mutant 19% | Subdweller-Mutant 8% | Scavenger-Mutant Dominant Class ---------------- Mutant | -10/Materials Mutant | -10/Subcaves Derelict-Mutant | -9/Recycling Resources | -11 -10 -10 -9 ----------- Run | Yrd Mat Sub Rec Matter Collected 1385 | 184 448 743 10 Remotely . | . . . . Salvage Created 1276 | . 434 842 . Parts 60 | . 15 45 . Haulers Intercepted 2 | . 2 . . Recyclers Shooed . | . . . . Parts Field Recycled . | . . . . Retrieved Matter . | . . . . Parts Self-Destructed 19 | . . 19 . Prevented . | . . . . Kills | -11 -10 -10 -9 ------- Run | Yrd Mat Sub Rec Combat Hostiles Destroyed 30 | . 9 21 . Melee 13 | . . 13 . Guns 9 | . 4 5 . Cannons 7 | . 5 2 . Classes Destroyed 9 | . 4 5 . Hauler 2 | . 2 . . Operator 1 | . 1 . . Watcher 2 | . 2 . . Swarmer 4 | . . 4 . Grunt 9 | . 9 . . Sentry 1 | . . 1 . Artisan 1 | . . 1 . Cobbler 1 | . . 1 . Subdweller 16 | . . 16 . Best Kill Streak 4 | . 2 4 . Combat Bots Only 4 | . 2 4 . Max Kills in Single Turn 1 | . 1 1 . Gunslinging . | . . . . Exploded . | . . . . Melee 1 | . . 1 . Uniques/NPCs Destroyed . | . . . . Combat | -11 -10 -10 -9 -------- Run | Yrd Mat Sub Rec Hostile Shots Fired 171 | . 38 130 3 Missed 44 | . 9 34 1 Damage Taken 1941 | . 374 1534 33 Core 252 | . 63 174 15 Absorbed by Shields . | . . . . Core Remaining (%) 100 | 100 . . . Volleys Fired 119 | . 50 69 . Largest 2 | . 2 2 . Hottest 108 | . 78 108 . Shots Fired 216 | . 100 116 . Gun 115 | . 38 77 . Cannon 92 | . 62 30 . Launcher 9 | . . 9 . Special . | . . . . Kinetic 188 | . 100 88 . Thermal 19 | . . 19 . Explosive 9 | . . 9 . Electromagnetic . | . . . . Robot Hit Streak 14 | . 6 14 . Robot Miss Streak 7 | . 7 4 . Penetration Max . | . . . . Secondary Targets . | . . . . Shots Hit Robots 144 | . 49 95 . Core Hits 53 | . 21 32 . Critical Kills 1 | . . 1 . Critical Parts Destroyed 1 | . . 1 . Critical Strikes 4 | . 1 3 . Destroy 1 | . . 1 . Blast 1 | . 1 . . Smash 2 | . . 2 . Melee Attacks 151 | . . 142 9 Impact 32 | . . 29 3 Slashing 119 | . . 113 6 Piercing . | . . . . Sneak Attacks 2 | . . 2 . Combat Hostiles 1 | . . 1 . Follow-up Attacks 6 | . . 6 . Damage Inflicted 3008 | . 831 2177 . Guns 993 | . 287 706 . Cannons 805 | . 544 261 . Explosions . | . . . . Melee 1210 | . . 1210 . Ramming . | . . . . Kinetic 1664 | . 831 833 . Thermal 134 | . . 134 . Explosive . | . . . . Electromagnetic . | . . . . Impact 241 | . . 241 . Slashing 969 | . . 969 . Piercing . | . . . . Highest Corruption . | . . . . Average Corruption . | . . . . Corruption Purged . | . . . . Corruption Blocked . | . . . . Overload Shots . | . . . . Overflow Damage 164 | . 18 146 . Projectiles 31 | . 18 13 . Explosions 6 | . . 6 . Melee 127 | . . 127 . Knockbacks 8 | . 6 2 . Impact 1 | . . 1 . Kinetic 7 | . 6 1 . Secondary . | . . . . Self-Inflicted Damage 31 | . . 31 . Shots 1 | . . 1 . Rammed . | . . . . Targets Rammed . | . . . . Kicked . | . . . . Crushed . | . . . . Highest Temperature 126 | . 126 28 . Average Temperature 35 | . 36 21 . Received Heat Transfer 441 | . 222 210 9 Siege Activations . | . . . . Robots Corrupted . | . . . . Combat Hostiles . | . . . . Parts Fried 4 | . . 4 . Impact Corruptions 2 | . . 2 . Robots Melted . | . . . . Combat Hostiles . | . . . . Parts Melted . | . . . . Heat Transferred 185 | . . 185 . Parts Sabotaged . | . . . . Parts Stolen . | . . . . Parts Stripped . | . . . . Power Chain Reactions . | . . . . Alert | -11 -10 -10 -9 ------- Run | Yrd Mat Sub Rec Peak Influence 363 | . 152 . 363 Initial 340 | . . . 340 Average 104 | . 55 . 248 Maximum Alert Level 1 | . . . 1 Low Security (%) 87 | 100 100 . 51 Level 1 12 | . . . 48 Level 2 . | . . . . Level 3 . | . . . . Level 4 . | . . . . Level 5 . | . . . . High Security . | . . . . Max Security . | . . . . Squads Dispatched 2 | . 2 . . Investigation 1 | . 1 . . Extermination . | . . . . Reinforcement 1 | . 1 . . Assault . | . . . . Garrison . | . . . . Intercept . | . . . . Searches Triggered . | . . . . Construction Impeded . | . . . . Haulers Reinforced . | . . . . Active Scanning Responses . | . . . . Cargo Convoy Interrupts . | . . . . Stealth | -11 -10 -10 -9 --------- Run | Yrd Mat Sub Rec Distress Signals 1 | . 1 . . Communications Jammed . | . . . . Distress Signals . | . . . . Times Spotted 69 | . 23 45 1 Peak Tracking Total 6 | . 4 6 1 Tactical Retreats 6 | . 2 4 . Traps | -11 -10 -10 -9 ------- Run | Yrd Mat Sub Rec Traps Triggered 1 | . 1 . . Indirectly . | . . . . Trap Hack Attempts . | . . . . Triggered . | . . . . Disarmed . | . . . . Reprogrammed . | . . . . Reused . | . . . . Traps Extracted . | . . . . Installed . | . . . . Triggered . | . . . . Machines | -11 -10 -10 -9 ---------- Run | Yrd Mat Sub Rec Machines Disabled 6 | . 4 2 . Max in Single Turn 1 | . 1 1 . Machines Repaired . | . . . . Machines Dismantled . | . . . . Machines Sabotaged . | . . . . Overloaded Fab Kills . | . . . . Hacking | -11 -10 -10 -9 --------- Run | Yrd Mat Sub Rec Machines Accessed 11 | . 3 2 6 Terminals 8 | . 3 . 5 Fabricators . | . . . . Repair Stations . | . . . . Recycling Units 1 | . . . 1 Scanalyzers . | . . . . Garrison Access . | . . . . Total Hacks 27 | . 5 11 11 Successful 19 | . 2 11 6 Failed 8 | . 3 . 5 Catastrophic 1 | . . . 1 Database Lockouts . | . . . . Manual 8 | . 1 3 4 Terminals 15 | . 5 . 10 Fabricators . | . . . . Repair Stations . | . . . . Recycling Units 1 | . . . 1 Scanalyzers . | . . . . Garrison Access . | . . . . Terminal Hacks 18 | . 2 11 5 Record 10 | . . 10 . Part Schematic 2 | . . . 2 Prototype ID Bank 3 | . 1 . 2 Locate Traps 2 | . 1 . 1 Derelict Proto ID Bank 1 | . . 1 . Fabricator Hacks . | . . . . Repair Station Hacks . | . . . . Recycling Unit Hacks 1 | . . . 1 Report Inventory 1 | . . . 1 Scanalyzer . | . . . . Garrison Access Hacks . | . . . . Unauthorized Hacks . | . . . . Terminals . | . . . . Fabricators . | . . . . Repair Stations . | . . . . Recycling Units . | . . . . Scanalyzers . | . . . . Garrison Access . | . . . . Data Cores Recovered . | . . . . Used . | . . . . Hacking Detections 8 | . 3 . 5 Full Trace Events . | . . . . Feedback Events . | . . . . Feedback Blocked . | . . . . Robot Schematics Acquired . | . . . . Robots Built . | . . . . Authchips . | . . . . Time . | . . . . Total Robot Build Rating . | . . . . Part Schematics Acquired 2 | . . . 2 Parts Built . | . . . . Authchips . | . . . . Time . | . . . . Total Part Build Rating . | . . . . Parts Repaired . | . . . . Time . | . . . . Parts Recycled . | . . . . Recycled Matter . | . . . . Retrieved Matter . | . . . . Retrieved Components . | . . . . Parts Scanalyzed . | . . . . Part Schematics Acquired . | . . . . Parts Damaged . | . . . . Bothacking | -11 -10 -10 -9 ------------ Run | Yrd Mat Sub Rec Used RIF Installer . | . . . . Robots Hacked . | . . . . Non-combat . | . . . . Combat . | . . . . Robot Hacks Applied . | . . . . Relay Couplers Released . | . . . . Fabnet Peak Effective % . | . . . . Robots Rewired . | . . . . Allies Hacked . | . . . . Hacks Repelled . | . . . . Allies | -11 -10 -10 -9 -------- Run | Yrd Mat Sub Rec Total Allies . | . . . . Largest Group . | . . . . Highest-Rated Group . | . . . . Highest-Rated Ally . | . . . . Total Orders . | . . . . Ally Attacks . | . . . . Total Damage . | . . . . Kills . | . . . . Allies Corrupted . | . . . . Allies Melted . | . . . . Intel | -11 -10 -10 -9 ------- Run | Yrd Mat Sub Rec Robot Analysis Total . | . . . . Derelict Logs Recovered 1 | . . 1 . Drone Launches . | . . . . Drone Recoveries . | . . . . Exploration | -11 -10 -10 -9 ------------- Run | Yrd Mat Sub Rec Turns Passed 11465 | 76 2259 8302 828 Spaces Moved 4937 | 37 689 3792 419 Core 204 | 11 . 193 . Treads 3261 | 26 689 2127 419 Legs . | . . . . Wheels 1472 | . . 1472 . Hover . | . . . . Flight . | . . . . Fastest Speed 50 | 50 160 95 160 Average Speed 164 | 171 160 165 160 Slowest Speed 500 | 250 160 500 160 Overloaded Moves . | . . . . Propulsion Burnouts . | . . . . Robots Hopped . | . . . . Cave-ins Triggered . | . . . . Exploration Rate (%) 69 | 3 100 96 77 Regions Visited 3 Branch Regions 2 Pre-discovered Areas 1 | . . 1 . Known Exits Taken 1 | . 1 . . Unknown Exits Taken 2 | 1 . 1 . Scrap Searched 14 | . . 14 . Spaces Dug 48 | . . 42 6 Terrain Destroyed 96 | . 5 85 6 Melee 17 | . . 11 6 Projectile 6 | . 5 1 . AOE 73 | . . 73 . Terrain Rammed . | . . . . Walls Destroyed . | . . . . Machines Disabled . | . . . . Actions | -11 -10 -10 -9 --------- Run | Yrd Mat Sub Rec Total 7990 | 47 1756 5616 571 Wait 2670 | . 987 1541 142 Move 4934 | 36 688 3791 419 Hop . | . . . . Pick Up 37 | 5 14 18 . Fast Attach 27 | 5 4 17 1 Attach 4 | 1 . 3 . Detach 4 | . . 2 2 Swap 8 | . 1 7 . Drop 48 | . 12 35 1 Fire 119 | . 50 69 . Melee 119 | . . 113 6 Ram . | . . . . Kick . | . . . . Crush . | . . . . Escape Stasis . | . . . . Rewire . | . . . . Trap . | . . . . Miscellaneous 20 | . . 20 . Route ------- -11/Scrapyard -10/Materials (discovered 5 exits: *Mat x3 / [*Min] / *Sub) -10/Subcaves (discovered 3 exits: *Mat x2 / *Rec) -9/Recycling (discovered 1 exit: [*Fac]) History --------- Turn | Location | Event 21 | -11/Scrapyard | Discovered new exit (range 15) 77 | -11/Scrapyard | Entered Materials 308 | -10/Materials | Build established: Mutant 461 | -10/Materials | Discovered new exit (range 12) 779 | -10/Materials | Discovered new exit (range 4) 817 | -10/Materials | Identified exit to Materials 1516 | -10/Materials | Discovered exit to Materials (range 5) 1710 | -10/Materials | Discovered exit to Materials (range 16) 2307 | -10/Materials | Discovered new exit (range 6) 2335 | -10/Materials | Identified exit to Subcaves 2336 | -10/Materials | Entered Subcaves 2675 | -10/Subcaves | A swath of the cavern ceiling suddenly collapsed 2738 | -10/Subcaves | Discovered new exit (range 6) 2744 | -10/Subcaves | Identified exit to Materials 2864 | -10/Subcaves | Disturbed a concealed Subdweller 2917 | -10/Subcaves | A swath of the cavern ceiling suddenly collapsed 3175 | -10/Subcaves | Ambushed by Subdweller buried in earth 5359 | -10/Subcaves | Build established: Subdweller-Mutant 6215 | -10/Subcaves | Visited 4L-MR0's lab 6507 | -10/Subcaves | Build established: Mutant 6517 | -10/Subcaves | Shifting Twisted Machinery released Sub. Machine Gun 6588 | -10/Subcaves | Shifting Twisted Machinery released Sub. Machine Gun 6589 | -10/Subcaves | Shifting Twisted Machinery released Riot Gun 6659 | -10/Subcaves | Core integrity fell below 50% 6937 | -10/Subcaves | Found Arachnoskeleton 7242 | -10/Subcaves | Discovered exit to Materials (range 9) 7491 | -10/Subcaves | Learned location of 1 exit from Materials 7506 | -10/Subcaves | Learned location of Zion (-7) 7506 | -10/Subcaves | Met a Zionite searching for "candidates" 7716 | -10/Subcaves | Visited Clippyterm 7719 | -10/Subcaves | Learned Factory garrison access intel 7891 | -10/Subcaves | Build established: Subdweller-Mutant 8624 | -10/Subcaves | Build established: Scavenger-Mutant 9326 | -10/Subcaves | Build established: Derelict-Mutant 10185 | -10/Subcaves | Discovered new exit (range 14) 10630 | -10/Subcaves | Core integrity fell below 20% 10638 | -10/Subcaves | Entered Recycling 10853 | -9/Recycling | Found Scrap Engine 11273 | -9/Recycling | Discovered new exit (range 5) 11466 | -9/Recycling | Destroyed by Y-45 Defender with Beam Rifle Last Messages --------------- >>Recycling(Report) Matter reserves: 0 Inventory: Empty 11230_ Acquired 10 matter. 11273_ EXIT=FOUND 11310_ Arm. Scrap Engine consumes Arm. Wheel. 11314_ Arm. Scrap Engine consumes Beam Rifle. 11317_ Arm. Scrap Engine consumes VTOL Module. 11331_ Arm. Scrap Engine consumes Ion Engine. 11339_ Arm. Scrap Engine consumes Broken Imp. Light Cannon. 11397_ Connecting with Terminal... >>Schematic(EM Pulse Cannon) Downloading schematic... EM Pulse Cannon Rating: 3 Schematic downloaded. >>Traps(Locate) No traps found in local area. 11461_ Y-45 Defender springs to life. Map ----- +----------------------------------------------------+ | ###??###?+#??????#### #######????#T """ | | ##?####??????????# #????#" """ | | ### ?##???????????# #????## " | | ## ##?#??????????# ####### | | ### #?#???????????# / | | ?## ??????????## #########"Y"# | | ??#+## ######??????????# #???????#"""# | | ? ?# ####????????????## #???????##### | | ?# ##??????????????#############???????????# | | ?# #??#????????????##?????###??????????????# | | ?# #???????????????????????????????????????# | | ?# ???????????????????##############??????# | | ? ?+ ???????????????????# !!#?###### | | ?? ?? ????????????????????# #?# | | ?????????????????????????????# #?# | | ?????????????????????????????# #?# | | ?????????????????????????????# ! #?# | | ?????????????????????????????# #?# | | ?????????????????????????????# #?# | | ?????????????????????????????# ! #?# | | ?????????????????????????????# ! #?# | | ?????????????????????????????# % ] #?# | | ?????????????????????????????# #?# | | ????????????????????########## #?# | | ????????????????????#///#! #########+#####? | | ?????????? ######///#@!!### ### ########## | | ?????????# r T" | | ?????????# " | | ?????????# uY | | ?????????# #### #########+##### ######"Y"# | | ??????????##+?????##???# #?#######????#"""# | | ???????????????????????# """"" #????????????##### | | ???????????????????????# """"" #????????????????# | | ???????????????????????# """"" #????????????????# | | ???????????????????????# #????????????????# | | ???????????????????????#" """"" #????????????????# | | ???????????????????????#T """"" #????????????????# | | ???????????????????????#" """"" #????????????????? | | ???????????????????????# #????????????????? | | ???????????????????????#########?????????????????? | | ?????????????????????????????????????????????????? | | ?????????????????????????????????????????????????? | | ?????????????????????????????????????????????????? | | ?????????????????????????????????????????????????? | | ?????????????????????????????????????????????????? | | ?????????????????????????????????????????????????? | | ?????????????????????????????????????????????????? | | ?????????????????????????????????????????????????? | | ?????????????????????????????????????????????????? | | | +----------------------------------------------------+ Best States ------------- Heat Dissipation 25 Energy Generation 15 Energy Capacity 250 Matter Stores 300 Matter Capacity 300 Sight Range 16 Terrain Scan Range 14 Terrain Scan Density 135 Armor Coverage 800 Core Shielding 20 Evasion (%) 41 Recoil Reduction 2 Item Schematics ----------------- Imp. Light Armor Plating | -9/Recycling | Hacked EM Pulse Cannon | -9/Recycling | Hacked Robot Schematics ------------------ None Fabricated ------------ Nothing Alien Tech Used ----------------- None Achievements -------------- None Challenges ------------ None Game ------ Seed PhasingBeamPenetrator Manual? 0 Play Time 01:03:35 Cumulative 66.0 hours Start 2024.05.08 @ 21:03:36 End 2024.05.08 @ 22:05:36 Sessions 1 Manual Loads 0 Difficulty Rogue Special Mode None Game No. 99 Rogue 99 Adventurer 0 Explorer 0 Win Type - Total 1 Types 1/0/0/0/0/0/0/0/0 Lore% 32 Gallery% 39 Achievement% 30 Wizard Run 0 Options --------- Layout 1 ASCII 0 Keyboard 1 Movement Numpad Keybinds 0 Fullscreen 1 Font 24/Smallcaps Map View 50x35 Zoom Use 0% Tactical HUD 1 Map Filters NONE Filters NONE Steam 1 RUN: 3628f894-86ce-404a-813d-8f19a76d1ab2